[Event "*** Titled Tuesday Blitz"]
[Site "Chess.com"]
[Date "2019.06.04"]
[Round "4"]
[White "RitvarsReimanis"]
[Black "Anaiy"]
[Result "1/2-1/2"]
[WhiteElo "2626"]
[BlackElo "1997"]
[TimeControl "180+2"]
[EndTime "13:56:14 PDT"]
[Termination "Game drawn by repetition"]

1. d4 {[%clk 0:03:01.9]} 1... d5 {[%clk 0:03:00.8]} 2. c4 {[%clk 0:03:02.3]}
2... e6 {[%clk 0:03:00.9]} 3. Nc3 {[%clk 0:03:03.5]} 3... Be7 {[%clk 0:03:01.7]}
4. Nf3 {[%clk 0:03:03.8]} 4... Nf6 {[%clk 0:03:02.5]} 5. cxd5 {[%clk 0:03:04]}
5... exd5 {[%clk 0:03:02.7]} 6. Bg5 {[%clk 0:03:05.1]} 6... c6 {[%clk
0:03:01.8]} 7. Qc2 {[%clk 0:03:06.1]} 7... O-O {[%clk 0:03:02.2]} 8. e3 {[%clk
0:03:07.1]} 8... Nbd7 {[%clk 0:03:03.3]} 9. Bd3 {[%clk 0:03:08]} 9... h6 {[%clk
0:03:03.7]} 10. Bf4 {[%clk 0:03:09]} 10... Re8 {[%clk 0:03:01.8]} 11. O-O {[%clk
0:03:09.6]} 11... Nf8 {[%clk 0:02:57.9]} 12. Rab1 {[%clk 0:03:09.6]} 12... a5
{[%clk 0:02:57.6]} 13. a3 {[%clk 0:03:09.3]} 13... Bd6 {[%clk 0:02:58.6]} 14.
Bg3 {[%clk 0:03:07.9]} 14... Bxg3 {[%clk 0:02:53.1]} 15. hxg3 {[%clk 0:03:09.8]}
15... Qe7 {[%clk 0:02:53.6]} 16. b4 {[%clk 0:03:09.6]} 16... axb4 {[%clk
0:02:54.1]} 17. axb4 {[%clk 0:03:11.5]} 17... Ne4 {[%clk 0:02:50.8]} 18. Bxe4
{[%clk 0:03:12.5]} 18... dxe4 {[%clk 0:02:51.2]} 19. Nd2 {[%clk 0:03:13.7]}
19... Bf5 {[%clk 0:02:36.9]} 20. b5 {[%clk 0:03:12.1]} 20... Nd7 {[%clk
0:02:22]} 21. bxc6 {[%clk 0:03:01.2]} 21... bxc6 {[%clk 0:02:23.9]} 22. Rb7
{[%clk 0:03:01.1]} 22... c5 {[%clk 0:01:49]} 23. Nd5 {[%clk 0:02:45.4]} 23...
Qe6 {[%clk 0:01:28.7]} 24. Nc7 {[%clk 0:02:43]} 24... Qc6 {[%clk 0:01:29.2]} 25.
Nxe8 {[%clk 0:02:43.6]} 25... Qxb7 {[%clk 0:01:25.3]} 26. Nd6 {[%clk 0:02:44.8]}
26... Qd5 {[%clk 0:01:24.8]} 27. Nxf5 {[%clk 0:02:44.8]} 27... Qxf5 {[%clk
0:01:24.9]} 28. Qxe4 {[%clk 0:02:43.3]} 28... Qxe4 {[%clk 0:01:21.6]} 29. Nxe4
{[%clk 0:02:45.2]} 29... cxd4 {[%clk 0:01:22.6]} 30. exd4 {[%clk 0:02:41.5]}
30... Ra4 {[%clk 0:01:22.6]} 31. Rd1 {[%clk 0:02:38.9]} 31... Kf8 {[%clk
0:01:16.9]} 32. f3 {[%clk 0:02:35.3]} 32... Nf6 {[%clk 0:01:06.6]} 33. Nxf6
{[%clk 0:02:08.3]} 33... gxf6 {[%clk 0:01:08.5]} 34. g4 {[%clk 0:02:08.5]} 34...
Ke7 {[%clk 0:01:07.6]} 35. Re1+ {[%clk 0:02:09.7]} 35... Kd6 {[%clk 0:01:01.6]}
36. Re4 {[%clk 0:02:11.1]} 36... Ra5 {[%clk 0:00:57]} 37. Kf2 {[%clk 0:01:57.3]}
37... h5 {[%clk 0:00:57.2]} 38. gxh5 {[%clk 0:01:52.1]} 38... Rxh5 {[%clk
0:00:59.1]} 39. Re8 {[%clk 0:01:47.3]} 39... Kd5 {[%clk 0:00:32.9]} 40. Ke3
{[%clk 0:01:42.3]} 40... Rh2 {[%clk 0:00:27.3]} 41. g4 {[%clk 0:01:32.8]} 41...
Ra2 {[%clk 0:00:23.4]} 42. Rd8+ {[%clk 0:01:32.7]} 42... Ke6 {[%clk 0:00:22.9]}
43. Rb8 {[%clk 0:01:33.5]} 43... f5 {[%clk 0:00:21]} 44. Rb6+ {[%clk 0:01:32.4]}
44... Kd5 {[%clk 0:00:21.2]} 45. Rb5+ {[%clk 0:01:33.5]} 45... Kc4 {[%clk
0:00:19.1]} 46. Rc5+ {[%clk 0:01:34.5]} 46... Kb4 {[%clk 0:00:19.2]} 47. Rxf5
{[%clk 0:01:36.4]} 47... Ra3+ {[%clk 0:00:19.4]} 48. Ke4 {[%clk 0:01:37.2]}
48... Ra7 {[%clk 0:00:19.9]} 49. Rc5 {[%clk 0:01:35.5]} 49... Re7+ {[%clk
0:00:18.9]} 50. Re5 {[%clk 0:01:36.9]} 50... Rd7 {[%clk 0:00:19.3]} 51. f4
{[%clk 0:01:36.9]} 51... Kc3 {[%clk 0:00:17.9]} 52. Rc5+ {[%clk 0:01:37.6]}
52... Kd2 {[%clk 0:00:19]} 53. g5 {[%clk 0:01:38.1]} 53... Ke2 {[%clk
0:00:18.1]} 54. Rd5 {[%clk 0:01:36.8]} 54... Re7+ {[%clk 0:00:19]} 55. Re5
{[%clk 0:01:38.3]} 55... Rd7 {[%clk 0:00:18.9]} 56. Ra5 {[%clk 0:01:31.7]} 56...
Re7+ {[%clk 0:00:19.4]} 57. Re5 {[%clk 0:01:28.5]} 57... Rd7 {[%clk 0:00:19.1]}
58. d5 {[%clk 0:01:29.9]} 58... Kf2 {[%clk 0:00:18.8]} 59. Kf5 {[%clk
0:01:27.7]} 59... Kf3 {[%clk 0:00:19.2]} 60. g6 {[%clk 0:00:49.7]} 60... fxg6+
{[%clk 0:00:15.9]} 61. Kg5 {[%clk 0:00:51.2]} 61... Rd6 {[%clk 0:00:13.7]} 62.
f5 {[%clk 0:00:48.8]} 62... gxf5 {[%clk 0:00:11.9]} 63. Kxf5 {[%clk 0:00:50.7]}
63... Kg3 {[%clk 0:00:10.5]} 64. Ke4 {[%clk 0:00:49]} 64... Kg4 {[%clk
0:00:11.1]} 65. Re6 {[%clk 0:00:49.5]} 65... Rd8 {[%clk 0:00:10.6]} 66. Rg6+
{[%clk 0:00:50.1]} 66... Kh5 {[%clk 0:00:11.2]} 67. Rg1 {[%clk 0:00:49.6]} 67...
Kh6 {[%clk 0:00:09.7]} 68. Ke5 {[%clk 0:00:50.1]} 68... Kh7 {[%clk 0:00:10]} 69.
d6 {[%clk 0:00:49.1]} 69... Re8+ {[%clk 0:00:10.7]} 70. Kf6 {[%clk 0:00:46.7]}
70... Re2 {[%clk 0:00:10.1]} 71. d7 {[%clk 0:00:45.9]} 71... Rd2 {[%clk
0:00:09]} 72. Rg4 {[%clk 0:00:41.8]} 72... Rxd7 {[%clk 0:00:07.3]} 73. Rh4+
{[%clk 0:00:21.6]} 73... Kg8 {[%clk 0:00:07.7]} 74. Rg4+ {[%clk 0:00:23.1]}
74... Kf8 {[%clk 0:00:08.2]} 75. Ke6 {[%clk 0:00:22.3]} 75... Rg7 {[%clk
0:00:08.6]} 76. Ra4 {[%clk 0:00:22.5]} 76... Kg8 {[%clk 0:00:09.6]} 77. Kf6
{[%clk 0:00:22.7]} 77... Rf7+ {[%clk 0:00:09.2]} 78. Kg6 {[%clk 0:00:24.1]}
78... Rf8 {[%clk 0:00:10.5]} 79. Ra7 {[%clk 0:00:23.1]} 79... Rb8 {[%clk
0:00:10.9]} 80. Rg7+ {[%clk 0:00:24.3]} 80... Kh8 {[%clk 0:00:12.1]} 81. Rd7
{[%clk 0:00:24]} 81... Rb6+ {[%clk 0:00:11.9]} 82. Kf7 {[%clk 0:00:25.4]} 82...
Rb8 {[%clk 0:00:12.5]} 83. Rd6 {[%clk 0:00:21.5]} 83... Rb7+ {[%clk 0:00:13.5]}
84. Kf8 {[%clk 0:00:22.9]} 84... Rb8+ {[%clk 0:00:14.5]} 85. Kf7 {[%clk
0:00:24]} 85... Rb7+ {[%clk 0:00:15.7]} 86. Kg6 {[%clk 0:00:25.4]} 86... Rb8
{[%clk 0:00:15.8]} 87. Rc6 {[%clk 0:00:25.6]} 87... Rd8 {[%clk 0:00:16.3]} 88.
Rc7 {[%clk 0:00:25.7]} 88... Rd6+ {[%clk 0:00:15.4]} 89. Kf7 {[%clk 0:00:27.1]}
89... Ra6 {[%clk 0:00:13]} 90. Rc8+ {[%clk 0:00:26.2]} 90... Kh7 {[%clk
0:00:13.8]} 91. Rc7 {[%clk 0:00:26.5]} 91... Kh6 {[%clk 0:00:13.7]} 92. Rc8
{[%clk 0:00:27.1]} 92... Kg5 {[%clk 0:00:14]} 93. Rc5+ {[%clk 0:00:27.8]} 93...
Kf4 {[%clk 0:00:14.8]} 94. Rb5 {[%clk 0:00:29]} 94... Ke4 {[%clk 0:00:15.2]} 95.
Rh5 {[%clk 0:00:30]} 95... Kd4 {[%clk 0:00:15.9]} 96. Rh4+ {[%clk 0:00:31.2]}
96... Ke3 {[%clk 0:00:17.2]} 97. Ke7 {[%clk 0:00:32.7]} 97... Kf3 {[%clk
0:00:17.8]} 98. Kd7 {[%clk 0:00:34.2]} 98... Kg3 {[%clk 0:00:19.2]} 99. Rb4
{[%clk 0:00:35.3]} 99... Kf3 {[%clk 0:00:19.9]} 100. Kc7 {[%clk 0:00:36.7]}
100... Rh6 {[%clk 0:00:20.5]} 101. Kd7 {[%clk 0:00:37.3]} 101... Ke3 {[%clk
0:00:21.9]} 102. Ke7 {[%clk 0:00:38.6]} 102... Kf3 {[%clk 0:00:23.7]} 103. Kf7
{[%clk 0:00:39.9]} 103... Ra6 {[%clk 0:00:25.3]} 104. Rc4 {[%clk 0:00:40.5]}
104... Ke3 {[%clk 0:00:26]} 105. Ke7 {[%clk 0:00:41.8]} 105... Kd3 {[%clk
0:00:27.3]} 106. Rh4 {[%clk 0:00:42]} 106... Ke3 {[%clk 0:00:28.3]} 107. Kd7
{[%clk 0:00:43.2]} 107... Kd3 {[%clk 0:00:29.3]} 108. Rg4 {[%clk 0:00:44.3]}
108... Ke3 {[%clk 0:00:30.5]} 109. Kc7 {[%clk 0:00:44.3]} 109... Rh6 {[%clk
0:00:31]} 110. Kd7 {[%clk 0:00:44.1]} 110... Kf3 {[%clk 0:00:31.8]} 111. Rc4
{[%clk 0:00:44.8]} 111... Ke3 {[%clk 0:00:32.8]} 112. Ke7 {[%clk 0:00:46.1]}
112... Kd3 {[%clk 0:00:33.9]} 113. Rg4 {[%clk 0:00:46.7]} 113... Ra6 {[%clk
0:00:33.9]} 114. Kf7 {[%clk 0:00:47.4]} 114... Ke3 {[%clk 0:00:35]} 115. Ke7
{[%clk 0:00:47.4]} 115... Kd3 {[%clk 0:00:36.2]} 116. Kd7 {[%clk 0:00:48.3]}
116... Ke3 {[%clk 0:00:36.7]} 117. Ke7 {[%clk 0:00:49.1]} 117... Kd3 {[%clk
0:00:37.9]} 1/2-1/2

[Event "*** Titled Tuesday Blitz"]
[Site "Chess.com"]
[Date "2019.06.04"]
[Round "5"]
[White "raviteja81293"]
[Black "sergeikim"]
[Result "1-0"]
[WhiteElo "2581"]
[BlackElo "2391"]
[TimeControl "180+2"]
[EndTime "13:59:44 PDT"]
[Termination "raviteja81293 won by resignation"]

1. Nf3 {[%clk 0:03:00.3]} 1... Nf6 {[%clk 0:02:59.9]} 2. d4 {[%clk 0:03:00.5]}
2... g6 {[%clk 0:03:01]} 3. g3 {[%clk 0:03:00.9]} 3... Bg7 {[%clk 0:03:01.9]} 4.
Bg2 {[%clk 0:03:02.8]} 4... O-O {[%clk 0:03:02.8]} 5. O-O {[%clk 0:03:04.7]}
5... d6 {[%clk 0:03:03.7]} 6. c4 {[%clk 0:03:06.1]} 6... Nbd7 {[%clk 0:03:03.7]}
7. Nc3 {[%clk 0:03:08]} 7... e5 {[%clk 0:03:04]} 8. dxe5 {[%clk 0:03:09.6]} 8...
dxe5 {[%clk 0:03:04.5]} 9. Qb3 {[%clk 0:03:11.2]} 9... e4 {[%clk 0:02:54.1]} 10.
Ng5 {[%clk 0:03:10.8]} 10... Nc5 {[%clk 0:02:46.6]} 11. Qa3 {[%clk 0:03:12.1]}
11... Qd4 {[%clk 0:02:34.2]} 12. Be3 {[%clk 0:03:09.1]} 12... Qxc4 {[%clk
0:02:30.9]} 13. Qxc5 {[%clk 0:03:10]} 1-0

[Event "*** Titled Tuesday Blitz"]
[Site "Chess.com"]
[Date "2019.06.04"]
[Round "5"]
[White "vinniethepooh"]
[Black "Siemba"]
[Result "1-0"]
[WhiteElo "2571"]
[BlackElo "2078"]
[TimeControl "180+2"]
[EndTime "13:59:56 PDT"]
[Termination "vinniethepooh won by resignation"]

1. d4 {[%clk 0:03:01.9]} 1... Nf6 {[%clk 0:03:00.3]} 2. c4 {[%clk 0:03:02.3]}
2... g6 {[%clk 0:02:56]} 3. Nc3 {[%clk 0:03:02.1]} 3... Bg7 {[%clk 0:02:52.9]}
4. e4 {[%clk 0:03:02.2]} 4... d6 {[%clk 0:02:53.4]} 5. Nf3 {[%clk 0:03:02.9]}
5... O-O {[%clk 0:02:54.4]} 6. Be2 {[%clk 0:03:02.1]} 6... e5 {[%clk 0:02:54.4]}
7. O-O {[%clk 0:03:01.4]} 7... Nc6 {[%clk 0:02:55.2]} 8. d5 {[%clk 0:03:01.3]}
8... Ne7 {[%clk 0:02:55.5]} 9. b4 {[%clk 0:03:02.3]} 9... a5 {[%clk 0:02:54.7]}
10. bxa5 {[%clk 0:03:01.6]} 10... Rxa5 {[%clk 0:02:51.8]} 11. a4 {[%clk
0:03:01.5]} 11... b6 {[%clk 0:02:52.8]} 12. Nd2 {[%clk 0:03:01.6]} 12... Nd7
{[%clk 0:02:49.8]} 13. Nb3 {[%clk 0:03:02.2]} 13... Ra8 {[%clk 0:02:45.7]} 14.
a5 {[%clk 0:03:03.4]} 14... c5 {[%clk 0:02:32.1]} 1-0

[Event "*** Titled Tuesday Blitz"]
[Site "Chess.com"]
[Date "2019.06.04"]
[Round "5"]
[White "WPWPWP-2015"]
[Black "MasterKroket"]
[Result "1-0"]
[WhiteElo "2450"]
[BlackElo "2351"]
[TimeControl "180+2"]
[EndTime "14:00:19 PDT"]
[Termination "WPWPWP-2015 won by resignation"]

1. e4 {[%clk 0:03:01.9]} 1... c5 {[%clk 0:03:00.2]} 2. Nf3 {[%clk 0:03:02.1]}
2... e6 {[%clk 0:03:01.6]} 3. b3 {[%clk 0:03:01.6]} 3... Nf6 {[%clk 0:03:00.9]}
4. e5 {[%clk 0:02:58.5]} 4... Nd5 {[%clk 0:03:02]} 5. Bb2 {[%clk 0:02:59.5]}
5... Nc6 {[%clk 0:03:03]} 6. Nc3 {[%clk 0:03:00.1]} 6... Nxc3 {[%clk 0:02:59.2]}
7. dxc3 {[%clk 0:03:01.2]} 7... d5 {[%clk 0:02:54.3]} 8. exd6 {[%clk 0:03:01.9]}
8... Bxd6 {[%clk 0:02:55.5]} 9. Qd2 {[%clk 0:03:02.3]} 9... Be7 {[%clk
0:02:55.1]} 10. Bd3 {[%clk 0:03:02.7]} 10... Bf6 {[%clk 0:02:54]} 11. O-O-O
{[%clk 0:03:01.7]} 11... Qe7 {[%clk 0:02:52.6]} 12. g4 {[%clk 0:02:56.1]} 12...
Ne5 {[%clk 0:02:39.7]} 13. Nxe5 {[%clk 0:02:55]} 13... Bxe5 {[%clk 0:02:40.8]}
14. Bb5+ {[%clk 0:02:53.1]} 14... Bd7 {[%clk 0:02:19]} 15. Qxd7+ {[%clk
0:02:49.7]} 1-0

[Event "*** Titled Tuesday Blitz"]
[Site "Chess.com"]
[Date "2019.06.04"]
[Round "5"]
[White "oskariot"]
[Black "BigAl"]
[Result "0-1"]
[WhiteElo "2539"]
[BlackElo "2386"]
[TimeControl "180+2"]
[EndTime "14:00:30 PDT"]
[Termination "BigAl won by resignation"]

1. d4 {[%clk 0:03:01.9]} 1... Nf6 {[%clk 0:02:42.6]} 2. c4 {[%clk 0:03:03.8]}
2... g6 {[%clk 0:02:43]} 3. Nc3 {[%clk 0:03:05.7]} 3... Bg7 {[%clk 0:02:44.9]}
4. e4 {[%clk 0:03:07.2]} 4... O-O {[%clk 0:02:46.8]} 5. f3 {[%clk 0:03:08.8]}
5... d6 {[%clk 0:02:48.5]} 6. Be3 {[%clk 0:03:10.7]} 6... a6 {[%clk 0:02:49.8]}
7. Qd2 {[%clk 0:03:12.6]} 7... Nc6 {[%clk 0:02:49.3]} 8. g3 {[%clk 0:03:12.1]}
8... e5 {[%clk 0:02:47.1]} 9. d5 {[%clk 0:03:13.1]} 9... Nd4 {[%clk 0:02:48.4]}
10. Nce2 {[%clk 0:03:12.9]} 10... c5 {[%clk 0:02:42.8]} 11. dxc6 {[%clk
0:03:14.8]} 11... bxc6 {[%clk 0:02:42.7]} 12. O-O-O {[%clk 0:03:16.5]} 12... c5
{[%clk 0:02:43]} 13. Kb1 {[%clk 0:03:17]} 13... Rb8 {[%clk 0:02:44.2]} 14. Nc3
{[%clk 0:03:17.7]} 14... a5 {[%clk 0:02:34.9]} 15. Nge2 {[%clk 0:03:18.8]} 15...
Qb6 {[%clk 0:02:28]} 16. Bg2 {[%clk 0:03:17.9]} 16... Be6 {[%clk 0:02:27.8]} 17.
Nd5 {[%clk 0:03:17.6]} 17... Bxd5 {[%clk 0:02:18.4]} 18. cxd5 {[%clk 0:03:19.5]}
18... Rb7 {[%clk 0:02:07.4]} 19. Nc3 {[%clk 0:03:20.3]} 19... Rfb8 {[%clk
0:02:06.8]} 20. Ka1 {[%clk 0:03:21.7]} 20... Qxb2+ {[%clk 0:02:05.4]} 21. Qxb2
{[%clk 0:03:23.6]} 21... Rxb2 {[%clk 0:02:06.2]} 22. Bxd4 {[%clk 0:03:24]} 0-1

[Event "*** Titled Tuesday Blitz"]
[Site "Chess.com"]
[Date "2019.06.04"]
[Round "5"]
[White "toog"]
[Black "flubs"]
[Result "1-0"]
[WhiteElo "2329"]
[BlackElo "2314"]
[TimeControl "180+2"]
[EndTime "14:01:00 PDT"]
[Termination "toog won by resignation"]

1. e4 {[%clk 0:03:01.4]} 1... c6 {[%clk 0:03:00.7]} 2. d4 {[%clk 0:02:59.5]}
2... d5 {[%clk 0:03:01.8]} 3. Nc3 {[%clk 0:03:00.9]} 3... dxe4 {[%clk
0:03:02.2]} 4. Nxe4 {[%clk 0:02:59.9]} 4... Nf6 {[%clk 0:03:03.2]} 5. Nxf6+
{[%clk 0:02:58.6]} 5... exf6 {[%clk 0:03:04.3]} 6. c3 {[%clk 0:02:59.5]} 6...
Bf5 {[%clk 0:03:04.3]} 7. Bd3 {[%clk 0:02:58.4]} 7... Bxd3 {[%clk 0:03:03.5]} 8.
Qxd3 {[%clk 0:03:00.3]} 8... Bd6 {[%clk 0:03:05.2]} 9. Ne2 {[%clk 0:03:00.6]}
9... Qc7 {[%clk 0:03:03.5]} 10. Be3 {[%clk 0:03:01.4]} 10... Kd8 {[%clk
0:03:02.6]} 11. O-O-O {[%clk 0:03:01.7]} 11... Nd7 {[%clk 0:03:02.4]} 12. Ng3
{[%clk 0:03:00.6]} 12... g6 {[%clk 0:03:03]} 13. Kb1 {[%clk 0:02:59]} 13... Re8
{[%clk 0:02:57.5]} 14. Ne4 {[%clk 0:02:58.7]} 14... f5 {[%clk 0:02:54.4]} 15.
Nxd6 {[%clk 0:02:58.9]} 15... Qxd6 {[%clk 0:02:55.1]} 16. g3 {[%clk 0:03:00.4]}
16... Nf6 {[%clk 0:02:53.5]} 17. Bf4 {[%clk 0:03:00]} 17... Qd5 {[%clk
0:02:48.1]} 18. Bg5 {[%clk 0:02:58]} 18... Re6 {[%clk 0:02:48.6]} 19. Rhe1
{[%clk 0:02:57.7]} 19... Kd7 {[%clk 0:02:47.1]} 20. Rxe6 {[%clk 0:02:57.6]}
20... Qxe6 {[%clk 0:02:47.4]} 21. Bxf6 {[%clk 0:02:52.3]} 21... Qxf6 {[%clk
0:02:48.2]} 22. d5 {[%clk 0:02:54.2]} 22... c5 {[%clk 0:02:48.6]} 23. Qb5+
{[%clk 0:02:54.6]} 23... Kd8 {[%clk 0:02:41.5]} 24. Qxb7 {[%clk 0:02:51]} 24...
Rc8 {[%clk 0:02:40.5]} 25. d6 {[%clk 0:02:47.5]} 25... Qe6 {[%clk 0:02:33.4]}
26. d7 {[%clk 0:02:43.9]} 1-0

[Event "*** Titled Tuesday Blitz"]
[Site "Chess.com"]
[Date "2019.06.04"]
[Round "5"]
[White "PotapovaM"]
[Black "ruvat"]
[Result "1-0"]
[WhiteElo "2513"]
[BlackElo "2365"]
[TimeControl "180+2"]
[EndTime "14:01:08 PDT"]
[Termination "PotapovaM won by resignation"]

1. d4 {[%clk 0:03:01.9]} 1... d6 {[%clk 0:03:00.7]} 2. e4 {[%clk 0:03:01.5]}
2... Nf6 {[%clk 0:03:00.8]} 3. Nc3 {[%clk 0:03:02.3]} 3... g6 {[%clk 0:03:01.8]}
4. Bg5 {[%clk 0:02:59.6]} 4... Bg7 {[%clk 0:03:02.3]} 5. e5 {[%clk 0:03:00.5]}
5... Nfd7 {[%clk 0:03:03.2]} 6. exd6 {[%clk 0:03:01.1]} 6... cxd6 {[%clk
0:03:05.1]} 7. Nf3 {[%clk 0:03:02]} 7... O-O {[%clk 0:03:05.6]} 8. Be2 {[%clk
0:03:03.2]} 8... Nf6 {[%clk 0:03:06.5]} 9. O-O {[%clk 0:03:04.1]} 9... Nc6
{[%clk 0:03:07.4]} 10. Qd2 {[%clk 0:03:05.1]} 10... Bg4 {[%clk 0:03:07.7]} 11.
Rfe1 {[%clk 0:03:03.2]} 11... Rc8 {[%clk 0:03:05.6]} 12. h3 {[%clk 0:03:04]}
12... Bxf3 {[%clk 0:03:05.5]} 13. Bxf3 {[%clk 0:03:05.9]} 13... Re8 {[%clk
0:02:58.9]} 14. Rad1 {[%clk 0:02:27.2]} 14... Na5 {[%clk 0:02:58.1]} 15. b3
{[%clk 0:02:18.4]} 15... Qc7 {[%clk 0:02:58.9]} 16. Nb5 {[%clk 0:02:13.8]} 16...
Qb6 {[%clk 0:02:58.2]} 17. c4 {[%clk 0:02:10.4]} 17... a6 {[%clk 0:02:57.8]} 18.
Nc3 {[%clk 0:02:10.5]} 18... Qc7 {[%clk 0:02:46]} 19. Bxf6 {[%clk 0:02:10.6]}
19... exf6 {[%clk 0:02:46.2]} 20. Nd5 {[%clk 0:02:10.6]} 20... Qd8 {[%clk
0:02:42.5]} 21. Rxe8+ {[%clk 0:02:07.9]} 21... Qxe8 {[%clk 0:02:43]} 22. Qxa5
{[%clk 0:02:08.9]} 1-0

[Event "*** Titled Tuesday Blitz"]
[Site "Chess.com"]
[Date "2019.06.04"]
[Round "5"]
[White "kasparicy"]
[Black "fm_magua"]
[Result "0-1"]
[WhiteElo "2344"]
[BlackElo "2490"]
[TimeControl "180+2"]
[EndTime "14:01:21 PDT"]
[Termination "fm_magua won by resignation"]

1. e4 {[%clk 0:03:01.9]} 1... c5 {[%clk 0:02:59.6]} 2. Nf3 {[%clk 0:03:02]} 2...
Nc6 {[%clk 0:02:59.7]} 3. d4 {[%clk 0:03:03.4]} 3... cxd4 {[%clk 0:02:59.2]} 4.
Nxd4 {[%clk 0:03:05.3]} 4... e5 {[%clk 0:02:59.6]} 5. Ne2 {[%clk 0:03:05.1]}
5... Nf6 {[%clk 0:03:00.2]} 6. Nbc3 {[%clk 0:03:06.5]} 6... Bb4 {[%clk
0:03:01.2]} 7. a3 {[%clk 0:03:06.5]} 7... Bc5 {[%clk 0:02:57.4]} 8. Ng3 {[%clk
0:03:07.5]} 8... O-O {[%clk 0:02:57.1]} 9. h4 {[%clk 0:02:56.6]} 9... h6 {[%clk
0:02:57.4]} 10. Bc4 {[%clk 0:02:49.3]} 10... d6 {[%clk 0:02:58]} 11. Qe2 {[%clk
0:02:42.6]} 11... Nd4 {[%clk 0:02:57.4]} 12. Qd3 {[%clk 0:02:38.9]} 12... Be6
{[%clk 0:02:55.4]} 13. Bxe6 {[%clk 0:02:10.6]} 13... fxe6 {[%clk 0:02:54.9]} 14.
Be3 {[%clk 0:02:11.6]} 14... Ng4 {[%clk 0:02:54.6]} 15. Bxd4 {[%clk 0:02:06.5]}
15... exd4 {[%clk 0:02:55.5]} 16. Nce2 {[%clk 0:01:54.1]} 16... Nxf2 {[%clk
0:02:53.7]} 17. Qb3 {[%clk 0:01:53.6]} 17... Nxh1 {[%clk 0:02:53.9]} 18. Qxe6+
{[%clk 0:01:54.6]} 18... Kh8 {[%clk 0:02:54.1]} 19. Nxh1 {[%clk 0:01:56.1]}
19... Qxh4+ {[%clk 0:02:54.3]} 20. Nhg3 {[%clk 0:01:55.7]} 20... Rae8 {[%clk
0:02:52.8]} 21. Qd5 {[%clk 0:01:49.9]} 21... d3 {[%clk 0:02:50.6]} 0-1

[Event "*** Titled Tuesday Blitz"]
[Site "Chess.com"]
[Date "2019.06.04"]
[Round "5"]
[White "Indianlad"]
[Black "yuki_chess123"]
[Result "1-0"]
[WhiteElo "2863"]
[BlackElo "2172"]
[TimeControl "180+2"]
[EndTime "14:01:27 PDT"]
[Termination "Indianlad won by resignation"]

1. d4 {[%clk 0:03:01.9]} 1... g6 {[%clk 0:02:59.7]} 2. e4 {[%clk 0:03:02.1]}
2... Bg7 {[%clk 0:03:00.8]} 3. Nf3 {[%clk 0:03:03.1]} 3... c6 {[%clk 0:03:01.7]}
4. c4 {[%clk 0:03:02.2]} 4... d6 {[%clk 0:03:02.7]} 5. Nc3 {[%clk 0:03:03.1]}
5... Nd7 {[%clk 0:03:03.2]} 6. Be2 {[%clk 0:03:03.9]} 6... e5 {[%clk 0:03:04.3]}
7. O-O {[%clk 0:03:04.8]} 7... Ngf6 {[%clk 0:03:04.9]} 8. Be3 {[%clk 0:03:05.8]}
8... O-O {[%clk 0:03:05.4]} 9. dxe5 {[%clk 0:03:04.7]} 9... dxe5 {[%clk
0:03:05.9]} 10. h3 {[%clk 0:03:06.2]} 10... Re8 {[%clk 0:03:06.9]} 11. c5 {[%clk
0:03:07]} 11... Qe7 {[%clk 0:03:08]} 12. b4 {[%clk 0:03:06.7]} 12... Qf8 {[%clk
0:03:08.1]} 13. Nd2 {[%clk 0:03:03.1]} 13... Bh6 {[%clk 0:03:07]} 14. Nc4 {[%clk
0:03:03.4]} 14... Bxe3 {[%clk 0:03:06.8]} 15. fxe3 {[%clk 0:03:04.5]} 15... Qh6
{[%clk 0:03:05]} 16. Rf3 {[%clk 0:02:59.4]} 16... Re6 {[%clk 0:03:05.1]} 17. Nd6
{[%clk 0:03:00.3]} 17... a5 {[%clk 0:03:02.6]} 18. Bc4 {[%clk 0:03:00.6]} 18...
axb4 {[%clk 0:03:00.2]} 19. Bxe6 {[%clk 0:03:01.4]} 19... fxe6 {[%clk
0:03:00.5]} 20. Ne2 {[%clk 0:03:02.8]} 20... Ra3 {[%clk 0:02:48.9]} 21. Qd2
{[%clk 0:03:03.7]} 21... Qf8 {[%clk 0:02:27.8]} 22. Qxb4 {[%clk 0:02:57.5]}
22... Ra8 {[%clk 0:02:27.7]} 23. Raf1 {[%clk 0:02:51.9]} 23... Qe7 {[%clk
0:02:27.3]} 24. Nc3 {[%clk 0:02:47.1]} 24... Ne8 {[%clk 0:02:18.2]} 25. Rf7
{[%clk 0:02:40.6]} 1-0

[Event "*** Titled Tuesday Blitz"]
[Site "Chess.com"]
[Date "2019.06.04"]
[Round "5"]
[White "Spring199"]
[Black "mjray79"]
[Result "1-0"]
[WhiteElo "2213"]
[BlackElo "2100"]
[TimeControl "180+2"]
[EndTime "14:02:21 PDT"]
[Termination "Spring199 won by resignation"]

1. d4 {[%clk 0:03:01.9]} 1... Nf6 {[%clk 0:02:55.5]} 2. c4 {[%clk 0:03:02.4]}
2... g6 {[%clk 0:02:54.5]} 3. Nc3 {[%clk 0:03:02.9]} 3... Bg7 {[%clk 0:02:55.2]}
4. e4 {[%clk 0:03:03.3]} 4... d6 {[%clk 0:02:55.4]} 5. Nge2 {[%clk 0:03:04]}
5... a6 {[%clk 0:02:54]} 6. Ng3 {[%clk 0:03:03.9]} 6... c6 {[%clk 0:02:55.3]} 7.
Be2 {[%clk 0:03:02.1]} 7... b5 {[%clk 0:02:56.3]} 8. O-O {[%clk 0:02:45.8]} 8...
O-O {[%clk 0:02:55.5]} 9. a4 {[%clk 0:02:41.3]} 9... b4 {[%clk 0:02:54]} 10. Nb1
{[%clk 0:02:41.6]} 10... Nbd7 {[%clk 0:02:54.5]} 11. Nd2 {[%clk 0:02:34.8]}
11... Bb7 {[%clk 0:02:53.6]} 12. Nb3 {[%clk 0:02:34.7]} 12... e5 {[%clk
0:02:36.9]} 13. dxe5 {[%clk 0:02:27.7]} 13... Nxe5 {[%clk 0:02:35.1]} 14. Be3
{[%clk 0:02:24.3]} 14... c5 {[%clk 0:02:34.2]} 15. Qd2 {[%clk 0:02:11]} 15...
Nxe4 {[%clk 0:02:32.6]} 16. Nxe4 {[%clk 0:02:11.1]} 16... Bxe4 {[%clk 0:02:33]}
17. Rfd1 {[%clk 0:02:08.2]} 17... Re8 {[%clk 0:01:57.6]} 18. Qxd6 {[%clk
0:02:05.3]} 18... Bc2 {[%clk 0:01:56.5]} 19. Qxd8 {[%clk 0:02:05]} 19... Raxd8
{[%clk 0:01:56.9]} 20. Rxd8 {[%clk 0:02:05.4]} 20... Rxd8 {[%clk 0:01:58.1]} 21.
Nxc5 {[%clk 0:02:05.9]} 21... Nd3 {[%clk 0:01:53.2]} 22. Nxd3 {[%clk 0:02:03.8]}
22... Bxd3 {[%clk 0:01:50.3]} 23. Rd1 {[%clk 0:02:02.3]} 23... Bxe2 {[%clk
0:01:48]} 1-0